fUST/lending_fUST_20250228
["ID","MTS","AMOUNT","RATE_DAILY","PERIOD"]
[354779867,1740688246534,-500.0,0.00049315,120]
[354779869,1740688246543,-502.39894354,0.00049315,120]
[354779871,1740688246552,-342.87776324,0.00049315,120]
[354779873,1740688246561,-500.0,0.00049315,120]
[354779875,1740688246571,-500.0,0.00049315,120]
[354779877,1740688246582,-500.0,0.00049315,120]
[354779879,1740688246591,-300.0,0.00049315,120]
[354779881,1740688246601,-500.0,0.00049315,120]
[354779883,1740688246610,-160.44226308,0.00049315,120]
[354779885,1740688246619,-500.0,0.00049315,120]
[354779887,1740688246629,-500.0,0.00049315,120]
[354779889,1740688246639,-471.77891035,0.00049315,120]
[354779891,1740688246648,-500.0,0.00049315,120]
[354779893,1740688246657,-500.0,0.00049315,120]
[354779895,1740688246666,-181.8549009,0.00049315,120]
[354779897,1740688246683,-318.1450991,0.00049315,120]
[354779899,1740688246693,-500.0,0.00049315,120]
[354779900,1740688246702,-500.0,0.00049315,120]
[354779901,1740688246712,-500.0,0.00049315,120]
[354779902,1740688246722,-500.0,0.00049315,120]
[354779903,1740688246732,-500.0,0.00049315,120]
[354779904,1740688246741,-570.03,0.00049315,120]
[354779906,1740688246751,-500.0,0.00049315,120]
[354779908,1740688246760,-1314.3959252,0.00049315,120]
[354779917,1740688247271,-2192.5140748,0.00049315,120]
[354779918,1740688247280,-500.0,0.00049315,120]
[354779919,1740688247290,-500.0,0.00049315,120]
[354779920,1740688247299,-501.70601291,0.00049315,120]
[354779921,1740688247308,-500.0,0.00049315,120]
[354779922,1740688247317,-2081.3,0.00049315,120]
[354779923,1740688247326,-500.0,0.00049315,120]
[354779924,1740688247335,-500.0,0.00049315,120]
[354779925,1740688247344,-500.0,0.00049315,120]
[354779926,1740688247353,-500.0,0.00049315,120]
[354779927,1740688247362,-500.0,0.00049315,120]
[354779928,1740688247372,-500.0,0.00049315,120]
[354779929,1740688247385,-500.0,0.00049315,120]
[354779930,1740688247394,-640.7,0.00049315,120]
[354779931,1740688247403,-500.0,0.00049315,120]
[354779932,1740688247412,-500.0,0.00049315,120]
[354779933,1740688247421,-608.35,0.00049315,120]
[354779934,1740688247430,-500.0,0.00049315,120]
[354779935,1740688247439,-500.0,0.00049315,120]
[354779936,1740688247448,-500.0,0.00049315,120]
[354779937,1740688247457,-504.63789493,0.00049315,120]
[354779938,1740688247466,-500.0,0.00049315,120]
[354779939,1740688247476,-500.0,0.00049315,120]
[354779940,1740688247485,-500.0,0.00049315,120]
[354779941,1740688247494,-388.41173715,0.00049315,120]
[354779942,1740688247503,-500.0,0.00049315,120]
[354779943,1740688247512,-500.0,0.00049315,120]
[354779944,1740688247524,-1551.71,0.00049315,120]
[354779945,1740688247533,-500.0,0.00049315,120]
[354779946,1740688247542,-46140.93,0.00049315,7]
[354779947,1740688247551,-500.0,0.00049315,120]
[354779948,1740688247560,-503.8021486,0.00049315,120]
[354779949,1740688247569,-500.0,0.00049315,120]
[354779950,1740688247578,-236.45291813,0.00049315,120]
[354779951,1740688247588,-500.0,0.00049315,120]
[354779952,1740688247597,-500.0,0.00049373,7]
[354779953,1740688247607,-500.0,0.00049373,10]
[354779954,1740688247616,-500.0,0.00049373,10]
[354779955,1740688247625,-500.0,0.00049373,10]
[354779956,1740688247635,-500.0,0.00049373,10]
[354779957,1740688247644,-500.0,0.00049373,10]
[354779958,1740688247653,-500.0,0.00049373,10]
[354779959,1740688247662,-500.446861,0.00049373,10]
[354779960,1740688247672,-500.0,0.00049373,10]
[354779961,1740688247681,-500.0,0.00049373,10]
[354779962,1740688247690,-500.0,0.00049373,10]
[354779963,1740688247699,-500.0,0.00049373,10]
[354779964,1740688247708,-843.3,0.000494,30]
[354779965,1740688247817,-247.64631183,0.00049573,10]
[354779966,1740688247827,-500.0,0.00049573,10]
[354779967,1740688247837,-500.0,0.00049573,10]
[354779968,1740688247846,-500.0,0.00049573,10]
[354779969,1740688247855,-500.60914169,0.00049573,5]
[354779970,1740688247865,-500.0,0.00049573,10]
[354779971,1740688247874,-500.0,0.00049573,10]
[354779972,1740688247883,-500.0,0.00049573,7]
[354779973,1740688247893,-500.0,0.00049573,10]
[354779974,1740688247902,-500.0,0.00049573,10]
[354779975,1740688247911,-146.0618586,0.00049587,120]
[354779976,1740688247931,-500.0,0.00049315,120]
[354779977,1740688247940,-329.7,0.00049587,120]
[354779978,1740688247958,-24.2381414,0.00049587,120]
[354779979,1740688247968,-500.0,0.00049588,120]
[354779980,1740688247980,-500.0,0.00049588,120]
[354779981,1740688247989,-500.0,0.00049588,120]
[354779982,1740688247999,-500.0,0.00049588,120]
[354779983,1740688248009,-271.62,0.00049588,120]
[354779984,1740688248019,-553.65428525,0.00049588,120]
[354779985,1740688248028,-500.0,0.00049588,31]
[354779986,1740688248038,-161.42619344,0.00049588,31]
[354779987,1740688248048,-597.65,0.00049589,120]
[354779988,1740688248058,-500.0,0.00049589,120]
[354779989,1740688248068,-500.0,0.00049589,120]
[354779990,1740688248080,-500.0,0.00049589,120]
[354779991,1740688248090,-500.0,0.00049589,120]
[354779992,1740688248099,-500.0,0.00049589,120]
[354779993,1740688248110,-500.0,0.00049589,120]
[354779994,1740688248119,-500.0,0.00049589,120]
[354779995,1740688248129,-500.0,0.00049589,120]
[354779996,1740688248138,-500.0,0.00049589,120]
[354779997,1740688248148,-500.0,0.00049589,120]
[354779998,1740688248159,-500.0,0.00049589,120]
[354779999,1740688248169,-500.0,0.00049589,120]
[354780000,1740688248179,-500.0,0.00049589,120]
[354780001,1740688248188,-500.0,0.00049589,120]
[354780002,1740688248197,-500.0,0.00049589,120]
[354780003,1740688248206,-500.0,0.00049589,120]
[354780004,1740688248216,-500.0,0.00049589,120]
[354780005,1740688248228,-500.0,0.00049589,120]
[354780006,1740688248238,-500.0,0.00049589,120]
[354780007,1740688248248,-500.0,0.00049589,120]
[354780008,1740688248258,-500.0,0.00049589,120]
[354780009,1740688248267,-500.0,0.00049589,120]
[354780010,1740688248277,-164.11,0.00049589,120]
[354780011,1740688248287,-1004.7,0.00049589,120]
[354780012,1740688248296,-500.0,0.00049589,120]
[354780013,1740688248305,-708.17,0.00049589,120]
[354780014,1740688248315,-500.0,0.00049589,120]
[354780015,1740688248324,-898.66,0.00049589,120]
[354780016,1740688248334,-500.0,0.00049589,120]
[354780017,1740688248343,-619.61,0.00049589,120]
[354780018,1740688248352,-447.12151336,0.00049589,120]
[354780019,1740688248362,-500.0,0.00049589,120]
[354780020,1740688248371,-500.0,0.00049589,120]
[354780021,1740688248380,-753.41,0.00049589,120]
[354780022,1740688248389,-500.0,0.00049589,120]
[354780023,1740688248398,-500.0,0.00049589,120]
[354780024,1740688248407,-714.42,0.00049589,120]
[354780025,1740688248418,-500.0,0.00049589,120]
[354780026,1740688248428,-500.0,0.00049589,120]
[354780027,1740688248438,-500.0,0.00049589,120]
[354780028,1740688248447,-500.0,0.00049589,120]
[354780029,1740688248457,-500.0,0.00049589,120]
[354780030,1740688248466,-500.0,0.00049589,120]
[354780031,1740688248478,-1003.48,0.00049589,120]
[354780032,1740688248488,-500.0,0.00049589,120]
[354780033,1740688248497,-500.0,0.00049589,120]
[354780034,1740688248506,-500.0,0.00049589,120]
[354780035,1740688248516,-500.0,0.00049589,120]
[354780036,1740688248526,-500.0,0.00049589,120]
[354780037,1740688248536,-500.0,0.00049589,120]
[354780038,1740688248545,-563.93,0.00049589,2]
[354780039,1740688248556,-500.0,0.00049589,120]
[354780040,1740688248566,-500.0,0.00049589,120]
[354780041,1740688248576,-713.69,0.00049589,120]
[354780042,1740688248585,-500.0,0.00049589,120]
[354780043,1740688248595,-500.0,0.00049589,120]
[354780044,1740688248604,-500.0,0.00049589,120]
[354780045,1740688248614,-500.0,0.00049589,120]
[354780046,1740688248624,-646.51,0.00049589,120]
[354780047,1740688248634,-500.0,0.00049589,120]
[354780048,1740688248643,-510.09,0.00049589,120]
[354780049,1740688248652,-500.0,0.00049589,120]
[354780050,1740688248662,-500.0,0.00049589,120]
[354780051,1740688248671,-500.0,0.00049589,120]
[354780052,1740688248681,-505.09,0.00049589,120]
[354780053,1740688248690,-500.0,0.00049589,120]
[354780054,1740688248700,-500.0,0.00049589,120]
[354780055,1740688248710,-500.0,0.00049589,120]
[354780056,1740688248719,-500.0,0.00049589,120]
[354780057,1740688248731,-500.0,0.00049589,120]
[354780058,1740688248740,-500.0,0.00049589,120]
[354780059,1740688248751,-500.0,0.00049589,120]
[354780060,1740688248760,-500.0,0.00049589,120]
[354780061,1740688248771,-500.0,0.00049589,120]
[354780062,1740688248780,-500.0,0.00049589,120]
[354780063,1740688248790,-932.47,0.00049589,120]
[354780064,1740688248799,-500.0,0.00049589,120]
[354780065,1740688248809,-500.0,0.00049589,120]
[354780066,1740688248819,-500.0,0.00049589,120]
[354780067,1740688248828,-500.0,0.00049589,120]
[354780068,1740688248839,-661.17,0.00049589,120]
[354780069,1740688248849,-500.0,0.00049589,120]
[354780070,1740688248858,-506.51,0.00049589,120]
[354780071,1740688248868,-500.0,0.00049589,120]
[354780072,1740688248878,-1831.56,0.00049589,120]
[354780073,1740688248887,-500.0,0.00049589,120]
[354780074,1740688248897,-500.0,0.00049589,120]
[354780075,1740688248906,-557.04,0.00049589,120]
[354780076,1740688248916,-900.77,0.00049589,120]
[354780077,1740688248927,-151.0,0.00049589,120]
[354780078,1740688248936,-500.0,0.00049589,120]
[354780079,1740688248951,-641.01,0.00049589,120]
[354780080,1740688248961,-500.0,0.00049589,120]
[354780081,1740688248970,-500.0,0.00049589,120]
[354780082,1740688248981,-866.94,0.00049589,120]
[354780083,1740688248991,-500.0,0.00049589,120]
[354780084,1740688249000,-3263.81,0.00049589,120]
[354780085,1740688249010,-151.0,0.00049589,120]
[354780086,1740688249019,-500.0,0.00049589,120]
[354780087,1740688249029,-500.0,0.00049589,120]
[354780088,1740688249038,-10458.63,0.00049589,120]
[354780089,1740688249048,-500.0,0.00049589,120]
[354780090,1740688249057,-448.1,0.00049589,120]
[354780091,1740688249069,-652.74,0.00049589,120]
[354780092,1740688249078,-500.0,0.00049589,120]
[354780093,1740688249088,-500.0,0.00049589,120]
[354780094,1740688249097,-500.0,0.00049589,120]
[354780095,1740688249108,-500.0,0.00049589,120]
[354780096,1740688249117,-979.9,0.00049589,120]
[354780097,1740688249127,-1411.69,0.00049589,120]
[354780098,1740688249136,-500.0,0.00049589,120]
[354780099,1740688249146,-500.0,0.00049589,120]
[354780100,1740688249155,-500.0,0.00049589,120]
[354780101,1740688249164,-500.0,0.00049589,120]
[354780102,1740688249174,-583.01,0.00049589,120]
[354780103,1740688249183,-500.0,0.00049589,120]
[354780104,1740688249193,-500.0,0.00049589,120]
[354780105,1740688249202,-500.0,0.00049589,120]
[354780106,1740688249211,-500.0,0.00049589,120]
[354780107,1740688249220,-500.0,0.00049589,120]
[354780108,1740688249231,-500.0,0.00049589,120]
[354780109,1740688249241,-843.53,0.00049589,120]
[354780110,1740688249251,-500.0,0.00049589,120]
[354780111,1740688249260,-500.0,0.00049589,120]
[354780112,1740688249270,-2311.46,0.00049589,120]
[354780113,1740688249280,-151.0,0.00049589,120]
[354780114,1740688249291,-500.0,0.00049589,120]
[354780115,1740688249301,-151.0,0.00049589,120]
[354780116,1740688249310,-913.13,0.00049589,120]
[354780117,1740688249319,-500.0,0.00049589,120]
[354780118,1740688249328,-500.0,0.00049589,120]
[354780119,1740688249338,-500.0,0.00049589,120]
[354780120,1740688249347,-504.35978953,0.00049589,120]
[354780121,1740688249357,-761.988163,0.00049589,120]
[354780122,1740688249366,-500.0,0.00049589,120]
[354780123,1740688249375,-761.988163,0.00049589,120]
[354780124,1740688249385,-8928.98,0.00049589,6]
[354780125,1740688249394,-500.0,0.00049589,120]
[354780126,1740688249406,-500.0,0.00049589,120]
[354780127,1740688249415,-505.11,0.00049589,120]
[354780128,1740688249425,-500.0,0.00049589,120]
[354780129,1740688249435,-500.0,0.00049589,120]
[354780130,1740688249444,-500.0,0.00049589,120]
[354780131,1740688249453,-2249.01,0.00049589,120]
[354780132,1740688249463,-500.0,0.00049589,120]
[354780133,1740688249472,-500.0,0.00049589,120]
[354780134,1740688249482,-838.7,0.00049589,120]
[354780135,1740688249492,-500.0,0.00049589,120]
[354780136,1740688249502,-500.0,0.00049589,120]
[354780137,1740688249511,-2965.91,0.00049589,120]
[354780138,1740688249520,-1794.12,0.00049589,120]
[354780139,1740688249531,-500.0,0.00049589,120]
[354780140,1740688249541,-719.35,0.00049589,120]
[354780141,1740688249550,-500.0,0.00049589,120]
[354780142,1740688249559,-500.0,0.00049589,120]
[354780143,1740688249569,-219.49716529,0.00049589,120]
[354780144,1740688249578,-5963.03,0.00049589,120]
[354780145,1740688249588,-1076.04,0.00049589,120]
[354780146,1740688249597,-1000.0,0.00049589,2]
[354780147,1740688249607,-400.250958,0.00049589,120]
[354780148,1740688249617,-543.7,0.00049589,120]
[354780149,1740688249626,-617.72,0.00049589,120]
[354780150,1740688249635,-500.0,0.00049589,120]
[354780151,1740688249645,-166.321408,0.00049589,120]
[354780152,1740688249654,-500.0,0.00049589,120]
[354780153,1740688249663,-500.0,0.00049589,120]
[354780154,1740688249673,-553.68,0.00049589,120]
[354780155,1740688249682,-500.0,0.00049589,120]
[354780156,1740688249691,-6571.22,0.00049589,120]
[354780157,1740688249790,-500.0,0.00049589,120]
[354780158,1740688249800,-6567.64,0.00049589,120]
[354780159,1740688249810,-577.554576,0.00049589,120]
[354780160,1740688249819,-1273.81,0.00049589,120]
[354780161,1740688249829,-500.0,0.00049589,120]
[354780162,1740688249839,-577.554576,0.00049589,120]
[354780163,1740688249848,-500.0,0.00049589,120]
[354780164,1740688249857,-303.02585631,0.00049589,120]
[354780165,1740688249867,-500.0,0.00049589,120]
[354780166,1740688249876,-178.636422,0.00049589,120]
[354780167,1740688249885,-500.0,0.00049589,120]
[354780168,1740688249894,-178.636422,0.00049589,120]
[354780169,1740688249903,-619.03,0.00049589,120]
[354780170,1740688249912,-500.0,0.00049589,120]
[354780171,1740688249921,-500.0,0.00049589,120]
[354780172,1740688249930,-500.0,0.00049589,120]
[354780173,1740688249939,-151.0,0.00049589,120]
[354780174,1740688249947,-570.03,0.00049589,120]
[354780175,1740688249957,-500.0,0.00049589,120]
[354780176,1740688249966,-3506.91,0.00049589,120]
[354780177,1740688249977,-500.0,0.00049589,120]
[354780178,1740688249986,-2081.3,0.00049589,120]
[354780179,1740688249995,-500.0,0.00049589,120]
[354780180,1740688250004,-500.0,0.00049589,120]
[354780181,1740688250014,-500.0,0.00049589,120]
[354780182,1740688250023,-500.0,0.00049589,120]
[354780183,1740688250032,-178.09635,0.00049589,120]
[354780184,1740688250042,-500.0,0.00049589,120]
[354780185,1740688250051,-640.7,0.00049589,120]
[354780186,1740688250060,-500.0,0.00049589,120]
[354780187,1740688250070,-500.0,0.00049589,120]
[354780188,1740688250083,-178.09635,0.00049589,120]
[354780189,1740688250092,-151.0,0.00049589,120]
[354780190,1740688250101,-608.35,0.00049589,120]
[354780191,1740688250110,-151.0,0.00049589,120]
[354780192,1740688250121,-151.0,0.00049589,120]
[354780193,1740688250130,-500.0,0.00049589,120]
[354780194,1740688250139,-500.0,0.00049589,120]
[354780195,1740688250150,-500.0,0.00049589,120]
[354780196,1740688250159,-296.73,0.00049589,120]
[354780197,1740688250168,-1551.71,0.00049589,120]
[354780198,1740688250177,-500.0,0.00049589,120]
[354780199,1740688250187,-151.0,0.00049589,120]
[354780200,1740688250196,-46140.93,0.00049589,7]
[354780201,1740688250206,-157.580713,0.00049589,120]
[354780202,1740688250215,-157.580713,0.00049589,120]
[354780203,1740688250227,-500.0,0.00049589,120]
[354780204,1740688250236,-4999.99999946,0.000496,120]
[354780205,1740688250245,-254.36,0.00049763,120]
[354780206,1740688250255,-289.89,0.00049763,120]
[354780207,1740688250264,-196.27,0.00049763,120]
[354780208,1740688250274,-371.73804907,0.00049804,30]
[354780209,1740688250283,-315.0,0.00049804,30]
[354780210,1740688250292,-315.0,0.00049804,30]
[354780211,1740688250302,-315.0,0.00049804,30]
[354780212,1740688250311,-315.0,0.00049804,30]
[354780213,1740688250321,-500.0,0.00049863,120]
[354780214,1740688250330,-500.0,0.00049863,120]
[354780215,1740688250339,-500.0,0.00049863,120]
[354780216,1740688250348,-500.0,0.00049863,120]
[354780217,1740688250357,-500.0,0.00049863,120]
[354780218,1740688250367,-238.32555845,0.00049863,120]
[354780219,1740688250376,-500.0,0.00049863,120]
[354780220,1740688250385,-500.0,0.00049863,120]
[354780221,1740688250394,-383.50192534,0.00049863,120]
[354780222,1740688250404,-500.0,0.00049863,120]
[354780223,1740688250413,-500.0,0.00049863,120]
[354780224,1740688250422,-500.0,0.00049863,120]
[354780225,1740688250431,-500.0,0.00049863,120]
[354780226,1740688250440,-500.0,0.00049863,120]
[354780227,1740688250450,-151.0,0.00049863,120]
[354780228,1740688250459,-500.0,0.00049863,120]
[354780229,1740688250468,-500.0,0.00049863,120]
[354780230,1740688250480,-500.0,0.00049863,120]
[354780231,1740688250488,-500.0,0.00049863,120]
[354780232,1740688250498,-500.0,0.00049863,120]
[354780233,1740688250507,-151.0,0.00049863,120]
[354780234,1740688250516,-1004.7,0.00049863,120]
[354780235,1740688250525,-151.0,0.00049863,120]
[354780236,1740688250535,-500.0,0.00049863,120]
[354780237,1740688250545,-708.17,0.00049863,120]
[354780238,1740688250554,-500.0,0.00049863,120]
[354780239,1740688250563,-898.66,0.00049863,120]
[354780240,1740688250573,-500.0,0.00049863,120]
[354780241,1740688250582,-151.0,0.00049863,120]
[354780242,1740688250591,-151.0,0.00049863,120]
[354780243,1740688250601,-619.61,0.00049863,120]
[354780244,1740688250611,-500.0,0.00049863,120]
[354780245,1740688250621,-151.0,0.00049863,120]
[354780246,1740688250631,-151.0,0.00049863,120]
[354780247,1740688250640,-500.0,0.00049863,120]
[354780248,1740688250649,-753.41,0.00049863,120]
[354780249,1740688250659,-500.0,0.00049863,120]
[354780250,1740688250668,-500.0,0.00049863,120]
[354780251,1740688250678,-714.42,0.00049863,120]
[354780252,1740688250688,-500.0,0.00049863,120]
[354780253,1740688250697,-500.0,0.00049863,120]
[354780254,1740688250707,-500.0,0.00049863,120]
[354780255,1740688250716,-151.0,0.00049863,120]
[354780256,1740688250728,-500.0,0.00049863,120]
[354780257,1740688250738,-392.4501506,0.00049863,120]
[354780258,1740688250747,-500.0,0.00049863,120]
[354780259,1740688250756,-1003.48,0.00049863,120]
[354780260,1740688250765,-500.0,0.00049863,120]
[354780261,1740688250775,-500.0,0.00049863,120]
[354780262,1740688250784,-500.0,0.00049863,120]
[354780263,1740688250793,-500.0,0.00049863,120]
[354780264,1740688250803,-500.0,0.00049863,120]
[354780265,1740688250812,-500.0,0.00049863,120]
[354780266,1740688250822,-500.0,0.00049863,120]
[354780267,1740688250831,-500.0,0.00049863,120]
[354780268,1740688250841,-155.928146,0.00049863,120]
[354780269,1740688250850,-151.0,0.00049863,120]
[354780270,1740688250859,-155.928146,0.00049863,120]
[354780271,1740688250869,-713.69,0.00049863,120]
[354780272,1740688250878,-500.0,0.00049863,120]
[354780273,1740688250887,-500.0,0.00049863,120]
[354780274,1740688250896,-500.0,0.00049863,120]
[354780275,1740688250905,-500.0,0.00049863,120]
[354780276,1740688250914,-500.0,0.00049863,120]
[354780277,1740688250923,-510.09,0.00049863,120]
[354780278,1740688250932,-500.0,0.00049863,120]
[354780279,1740688250941,-500.0,0.00049863,120]
[354780280,1740688250950,-151.0,0.00049863,30]
[354780281,1740688250959,-500.0,0.00049863,120]
[354780282,1740688250968,-505.09,0.00049863,120]
[354780283,1740688250981,-500.0,0.00049863,120]
[354780284,1740688250990,-151.0,0.00049863,110]
[354780285,1740688250999,-151.0,0.00049863,110]
[354780286,1740688251008,-500.0,0.00049863,120]
[354780287,1740688251018,-151.0,0.00049863,2]
[354780288,1740688251027,-500.0,0.00049863,120]
[354780289,1740688251036,-151.0,0.00049863,2]
[354780290,1740688251045,-500.0,0.00049863,120]
[354780291,1740688251054,-500.0,0.00049863,120]
[354780292,1740688251068,-500.0,0.00049863,120]
[354780293,1740688251078,-500.0,0.00049863,120]
[354780294,1740688251087,-500.0,0.00049863,120]
[354780295,1740688251095,-500.0,0.00049863,120]
[354780296,1740688251105,-500.0,0.00049863,120]
[354780297,1740688251114,-932.47,0.00049863,120]
[354780298,1740688251124,-500.0,0.00049863,120]
[354780299,1740688251133,-500.0,0.00049863,120]
[354780300,1740688251142,-500.0,0.00049863,120]
[354780301,1740688251153,-500.0,0.00049863,120]
[354780302,1740688251162,-661.17,0.00049863,120]
[354780303,1740688251171,-500.0,0.00049863,120]
[354780304,1740688251180,-506.51,0.00049863,120]
[354780305,1740688251189,-1831.56,0.00049863,120]
[354780306,1740688251198,-500.0,0.00049863,120]
[354780307,1740688251207,-500.0,0.00049863,120]
[354780308,1740688251216,-557.04,0.00049863,120]
[354780309,1740688251229,-900.77,0.00049863,120]
[354780310,1740688251239,-151.0,0.00049863,120]
[354780311,1740688251248,-500.0,0.00049863,120]
[354780312,1740688251257,-641.01,0.00049863,120]
[354780313,1740688251266,-500.0,0.00049863,120]
[354780314,1740688251275,-500.0,0.00049863,120]
[354780315,1740688251284,-866.94,0.00049863,120]
[354780316,1740688251294,-500.0,0.00049863,120]
[354780317,1740688251303,-3263.81,0.00049863,120]
[354780318,1740688251313,-500.0,0.00049863,120]
[354780319,1740688251322,-500.0,0.00049863,120]
[354780320,1740688251331,-10458.63,0.00049863,120]
[354780321,1740688251340,-500.0,0.00049863,120]
[354780322,1740688251350,-652.74,0.00049863,120]
[354780323,1740688251359,-500.0,0.00049863,120]
[354780324,1740688251369,-500.0,0.00049863,120]
[354780325,1740688251378,-500.0,0.00049863,120]
[354780326,1740688251387,-979.9,0.00049863,120]
[354780327,1740688251396,-1411.69,0.00049863,120]
[354780328,1740688251405,-500.0,0.00049863,120]
[354780329,1740688251414,-500.0,0.00049863,120]
[354780330,1740688251424,-500.0,0.00049863,120]
[354780331,1740688251434,-500.0,0.00049863,120]
[354780332,1740688251443,-583.01,0.00049863,120]
[354780333,1740688251452,-500.0,0.00049863,120]
[354780334,1740688251461,-500.0,0.00049863,120]
[354780335,1740688251544,-500.0,0.00049863,120]
[354780336,1740688251561,-500.0,0.00049863,120]
[354780337,1740688251571,-843.53,0.00049863,120]
[354780338,1740688251580,-500.0,0.00049863,120]
[354780339,1740688251589,-500.0,0.00049863,120]
[354780340,1740688251599,-2311.46,0.00049863,120]
[354780341,1740688251609,-151.0,0.00049863,120]
[354780342,1740688251619,-577.23,0.00049863,120]
[354780343,1740688251628,-213.116519,0.00049863,120]
[354780344,1740688251637,-913.13,0.00049863,120]
[354780345,1740688251647,-500.0,0.00049863,120]
[354780346,1740688251656,-500.0,0.00049863,120]
[354780347,1740688251665,-503.15,0.00049863,120]
[354780348,1740688251675,-761.988163,0.00049863,120]
[354780349,1740688251685,-500.0,0.00049863,120]
[354780350,1740688251694,-761.988163,0.00049863,120]
[354780351,1740688251703,-8928.98,0.00049863,6]
[354780352,1740688251712,-500.0,0.00049863,120]
[354780353,1740688251722,-500.0,0.00049863,120]
[354780354,1740688251736,-505.11,0.00049863,120]
[354780355,1740688251745,-151.0,0.00049863,120]
[354780356,1740688251754,-151.0,0.00049863,120]
[354780357,1740688251763,-500.0,0.00049863,120]
[354780358,1740688251772,-2249.01,0.00049863,120]
[354780359,1740688251782,-500.0,0.00049863,120]
[354780360,1740688251791,-838.7,0.00049863,120]
[354780361,1740688251800,-500.0,0.00049863,120]
[354780362,1740688251809,-2965.91,0.00049863,120]
[354780363,1740688251819,-1794.12,0.00049863,120]
[354780364,1740688251828,-500.0,0.00049863,120]
[354780365,1740688251838,-719.35,0.00049863,120]
[354780366,1740688251847,-500.0,0.00049863,120]
[354780367,1740688251857,-500.0,0.00049863,120]
[354780368,1740688251866,-2555.64046441,0.00049863,120]
[354780369,1740688256601,2286.0,0.00052657,120]
[354780370,1740688257146,2280.0,0.00052657,120]
[354780371,1740688789549,-150.0,0.00036,30]
[354780372,1740688792990,-150.0,0.00036,30]
[354780373,1740688799037,-150.0,0.00036,30]
[354780374,1740688802483,-150.0,0.00036,30]
[354780375,1740688808699,-150.0,0.00036,30]
[354780376,1740688809252,-150.0,0.00035999,2]
[354780377,1740688812366,-150.0,0.00036,30]
[354780378,1740688813506,-150.0,0.00036,30]
[354780379,1740688814640,-150.0,0.00035999,2]
[354780380,1740688818193,-150.0,0.00036,30]
[354780381,1740688821688,-150.0,0.00036,30]
[354780382,1740688825824,-100.0,0.00035999,2]
[354780383,1740688831942,-150.0,0.00036,30]
[354780384,1740688832962,-150.0,0.00036,30]
[354780385,1740688837428,-150.0,0.00036,30]
[354780386,1740688838475,-150.0,0.00036,30]
[354780387,1740688896630,-150.0,0.00032877,2]
[354780388,1740688897778,-24.384848,0.00032877,2]
[354780389,1740688945101,-150.0,0.00039487,2]
[354780390,1740688951284,-56.8997188,0.00039487,2]
[354780391,1740689097863,-150.0,0.00039408,2]
[354780392,1740689101473,-1.32720976,0.00039408,2]